Workbook

Sheet Титульный
A1: SHABLON.TSO.2022
A2: Версия 22.0.1
B4: Информация о плате за техприсоединение к электросетям
B6: Наименование организации
B7: ИНН
B8: КПП
B9: Наименование (описание) обособленного подразделения
B10: Организационно-правовая форма
B11: Вид деятельности
B12: Период | C12: 2021
C13: Адрес регулируемой организации
B14: Юридический адрес
B15: Почтовый адрес
C16: Руководитель
B17: Фамилия, имя, отчество
B18: Телефон
C19: Ответственный за предоставление информации (от регулируемой организации)
B20: Фамилия, имя, отчество
B21: Должность
B22: Контактный телефон
B23: e-mail

Sheet Инструкция
B2: Инструкция по заполнению приложений, направленных письмом Региональной энергетической комиссии Свердловской области (далее – РЭК Свердловской области), разработанных в соответствии с методическими указаниями по определению размера платы за технологическое присоединение к электрическим сетям, утвержденными приказом ФАС России от 29.08.2017 № 1135/17
B3: 1. Ячейки голубого цвета подлежат обязательному заполнению территориальной сетевой организацией (далее – ТСО), ячейки желтого цвета предназначены для заполнения ТСО, ячейки зеленого цвета не подлежат заполнению.
B4: ="2. Показатели в приложениях 1.1, 1.2, 5.1, 5.2 заполняются по заключенным договорам об осуществлении технологического присоединения к электрическим сетям ТСО (далее − договор) "&"по введенным в эксплуатацию объектам электросетевого хозяйства ТСО за периоды "&IF(Титульный!C12="","--- выберите период на листе Титульный.",(Титульный!C12-3)&", "&(Титульный!C12-2)&", "&(Титульный!C12-1)&" годы.") -> 2. Показатели в приложениях 1.1, 1.2, 5.1, 5.2 заполняются по заключенным договорам об осуществлении технологического присоединения к электрическим сетям ТСО (далее − договор) по введенным в эксплуатацию объектам электросетевого хозяйства ТСО за периоды 2018, 2019, 2020 годы.
B5: ="3. Показатели в приложениях 1.1, 1.2, 5.1, 5.2 заполняются раздельно для территорий городских населенных пунктов и для территорий, " & "не относящихся к городским населенным пунктам." -> 3. Показатели в приложениях 1.1, 1.2, 5.1, 5.2 заполняются раздельно для территорий городских населенных пунктов и для территорий, не относящихся к городским населенным пунктам.
B6: 4. Показатели в приложениях 2.1, 2.2, 2.3, 3.1, 3.2 заполняются по выполненным договорам за 2018, 2019, 2020 годы.
B7: ="5. В случае если ТСО за периоды " &IF(Титульный!C12="","--- выберите период на листе Титульный --- ",(Титульный!C12-3)&", "&(Титульный!C12-2)&", "&(Титульный!C12-1)&" годы ") & "осуществляла деятельность по технологическому присоединению раздельно по постоянной и временной схеме, необходимо дополнительно представить в РЭК Свердловской области информацию о расходах за периоды " &IF(Титульный!C12="","--- выберите период на листе Титульный ---",(Титульный!C12-3)&", "&(Титульный!C12-2)&", "&(Титульный!C12-1)&" годы") & " для установления РЭК Свердловской области стандартизированной тарифной ставки С1, ставки за единицу максиальной мощности C1maxN раздельно для постоянной и для временной схемы." -> 5. В случае если ТСО за периоды 2018, 2019, 2020 годы осуществляла деятельность по технологическому присоединению раздельно по постоянной и временной схеме, необходимо дополнительно представить в РЭК Свердловской области информацию о расходах за периоды 2018, 2019, 2020 годы для установления РЭК Свердловской области стандартизированной тарифной ставки С1, ставки за единицу максиальной мощности C1maxN раздельно для постоянной и для временной схемы.
B8: 6. Приложение 4 к Методическим указаниям по определению размера платы за технологическое присоединение к электрическим сетям, утвержденным приказом ФАС России от 29.08.2017 № 1135/17 заполняется РЭК Свердловской области и не подлежит заполнению ТСО.
B10: I. Заполнение приложений 1.1, 1.2.
B11: 1) Приложение 1.1 заполняется для территорий городских населенных пунктов.
B12: 2) Приложение 1.2 заполняется для территорий, не относящихся к городским населенным пунктам.
B13: 3) В графе 2 указываются характеристики объекта электросетевого хозяйства/средства коммерческого учета электрической энергии (мощности), введенного в эксплуатацию (наименование мероприятия, выполненного ТСО в соответствии с выданными техническими условиями).
B14: 4) В графах 3, 7, 11 указывается уровень напряжения, соответствующий уровню напряжения объекта электросетевого хозяйства/средства коммерческого учета электрической энергии (мощности), введенного в эксплуатацию (наименование мероприятия, выполненного ТСО в соответствии с выданными техническими условиями).
B15: 5) В графах 4, 8, 12 указывается протяженность воздушной или кабельной линий электропередачи (далее – ЛЭП) в километрах по трассе (без учета количества кабелей (проводов) в линии), а также количество пунктов секционирования и точек учета электрической энергии (мощности) в штуках.
B16: 6) В графах 5, 9, 13 указывается размер присоединенной максимальной мощности энергопринимающего устройства заявителя согласно договору.
B17: 8) В графах 6, 10, 14 указываются расходы на строительство введенных в эксплуатацию объектов электросетевого хозяйства ТСО, а также на обеспечение средствами коммерческого учета электрической энергии (мощности), в соответствии с учетной политикой ТСО (например: стоимость принимаемых основных фондов согласно формам КС-14, КС-11).
B18: 9) В графах 4, 6, 8, 10, 12, 14, 16, 18 указывается размерность показателей с учётом обязательного заполнения трех знаков после запятой
B19: 10) Графы 15-18 заполняются ТСО только в случае, если за 3 предыдущих года ТСО не осуществлялось строительство объектов электросетевого хозяйства, а также обеспечение средствами коммерческого учета электрической энергии (мощности), в отношении которых устанавливаются стандартизированные тарифные ставки, по планируемым расходам, определенным по сметам, выполненным с применением сметных нормативов.
B20: ="11) За периоды " &IF(Титульный!C12="","--- выберите период на листе Титульный --- ",(Титульный!C12-3)&", "&(Титульный!C12-2)&", "&(Титульный!C12-1)&" годы ") & "всем ТСО необходимо представить в РЭК Свердловской области документы, подтверждающие расходы на выполнение мероприятий по строительству объектов электросетевого хозяйства ТСО, а также на обеспечение средствами коммерческого учета электрической энергии." -> 11) За периоды 2018, 2019, 2020 годы всем ТСО необходимо представить в РЭК Свердловской области документы, подтверждающие расходы на выполнение мероприятий по строительству объектов электросетевого хозяйства ТСО, а также на обеспечение средствами коммерческого учета электрической энергии.
B22: II. Заполнение приложений 2.1, 2.2, 2.3.
B23: ="1) Приложение 2.1 заполняется за " &IF(Титульный!C12="","--- выберите период на листе Титульный.",(Титульный!C12-3)&" год.") -> 1) Приложение 2.1 заполняется за 2018 год.
B24: ="2) Приложение 2.2 заполняется за " &IF(Титульный!C12="","--- выберите период на листе Титульный.",(Титульный!C12-2)&" год.") -> 2) Приложение 2.2 заполняется за 2019 год.
B25: ="3) Приложение 2.3 заполняется за " &IF(Титульный!C12="","--- выберите период на листе Титульный.",(Титульный!C12-1)&" год.") -> 3) Приложение 2.3 заполняется за 2020 год.
B26: 4) В графах 3-6 пункта 1 указываются расходы ТСО на выполнение мероприятий по подготовке и выдаче технических условий заявителю в тыс. рублей.
B27: 5) В графах 3-6 пунктов 2.1, 2.2 указываются расходы ТСО на выполнение мероприятий по проверке сетевой организацией выполнения заявителем технических условий в тыс. рублей.
B28: 6) В графах 8-11 указывается количество технологических присоединений в соответствии с выполненными договорами в штуках.
B29: 7) В графах 13-16 указывается объем присоединенной максимальной мощности в соответствии с выполненными договорами в кВт.
B30: ="8) За периоды " &IF(Титульный!C12="","--- выберите период на листе Титульный --- ",(Титульный!C12-3)&", "&(Титульный!C12-2)&", "&(Титульный!C12-1)&" годы ") & "всем ТСО необходимо представить в РЭК Свердловской области документы, подтверждающие расходы, количество техприсоединений, объем максимальной мощности." -> 8) За периоды 2018, 2019, 2020 годы всем ТСО необходимо представить в РЭК Свердловской области документы, подтверждающие расходы, количество техприсоединений, объем максимальной мощности.
B32: III. Заполнение приложений 3.1, 3.2.
B33: 1) Приложение 3.1 заполняется ТСО по мероприятию: подготовка и выдача сетевой организацией технических условий заявителю.
B34: 2) Приложение 3.2 заполняется ТСО по мероприятию: проверка сетевой организацией выполнения заявителем технических условий.
B35: 3) В графах 3-5 указываются расходы на выполнение мероприятий по технологическому присоединению с разбивкой по каждому показателю в тыс. рублей в соответствии с учетной политикой ТСО и бухгалтерской отчетностью.
B36: 4) В графах 3-5 указывается размерность показателей с учётом обязательного заполнения трех знаков после запятой.
B37: ="5) За периоды " &IF(Титульный!C12="","--- выберите период на листе Титульный --- ",(Титульный!C12-3)&", "&(Титульный!C12-2)&", "&(Титульный!C12-1)&" годы ") & "всем ТСО необходимо представить в РЭК Свердловской области документы, подтверждающие расходы по технологическому присоединению." -> 5) За периоды 2018, 2019, 2020 годы всем ТСО необходимо представить в РЭК Свердловской области документы, подтверждающие расходы по технологическому присоединению.
B39: IV. Заполнение приложений 5.1, 5.2.
B40: 1) Приложение 5.1 заполняется для территорий городских населенных пунктов.
B41: 2) Приложения 5.2 заполняется для территорий, не относящихся к городским населенным пунктам.
B42: 3) В графе 2 указываются характеристики объекта электросетевого хозяйства/средства коммерческого учета электрической энергии (мощности), введенного в эксплуатацию (наименование мероприятия, выполненного ТСО в соответствии с выданными техническими условиями).
B43: 4) В графах 3, 6, 9 указывается уровень напряжения, соответствующий уровню напряжения объекта электросетевого хозяйства/средства коммерческого учета электрической энергии (мощности), введенного в эксплуатацию (наименование мероприятия, выполненного ТСО в соответствии с выданными техническими условиями).
B44: 5) В графах 4, 7, 10 указывается протяженность ЛЭП в километрах по трассе (без учета количества кабелей (проводов) в линии) с учётом обязательного заполнения трех знаков после запятой, а также количество пунктов секционирования, точек учета электрической энергии (мощности) в штуках.
B45: 6) В графах 5, 8, 11 указывается размер присоединённой максимальной мощности энергопринимающего устройства заявителя согласно договору.

Sheet Прил. № 1.1 город
G11: Приложение № 1.1 к Методическим указаниям по определению размера платы за технологическое присоединение к электрическим сетям
A12: dd_hide/show | B12: hide | C12: range_name | D12: address_title | E12: address_svod | G12: Расходы на строительство введенных в эксплуатацию объектов электросетевого хозяйства для целей технологического присоединения и для целей реализации иных мероприятий инвестиционной программы территориальной сетевой организации, а также на обеспечение средствами коммерческого учета электрической энергии (мощности) (заполняется для территорий городских населенных пунктов)
G13: № п/п | H13: Объект электросетевого хозяйства/Средство коммерческого учета электрической энергии (мощности) | N13: Год ввода объекта 2018 | R13: Год ввода объекта 2019 | V13: Год ввода объекта 2020 | Z13: План*
N14: уровень напряжения, кВ | O14: протяженность (для линий электропередачи), км. / количество (для пунктов секционирования, точек учета ээ), шт. | P14: максимальная мощность, кВт | Q14: расходы на строительство объекта/на обеспечение средствами коммерческого учета электрической энергии (мощности), тыс. руб. | R14: уровень напряжения, кВ | S14: протяженность (для линий электропередачи), км. / количество (для пунктов секционирования, точек учета ээ), шт. | T14: максимальная мощность, кВт | U14: расходы на строительство объекта/на обеспечение средствами коммерческого учета электрической энергии (мощности), тыс. руб. | V14: уровень напряжения, кВ | W14: протяженность (для линий электропередачи), км. / количество (для пунктов секционирования, точек учета ээ), шт. | X14: максимальная мощность, кВт | Y14: расходы на строительство объекта/на обеспечение средствами коммерческого учета электрической энергии (мощности), тыс. руб. | Z14: уровень напряжения, кВ | AA14: протяженность (для линий электропередачи), км. / количество (для пунктов секционирования, точек учета ээ), шт. | AB14: максимальная мощность, кВт | AC14: расходы на строительство объекта/на обеспечение средствами коммерческого учета электрической энергии (мощности), тыс. руб.
A15: ddShPr11City_rstart | G15: 1 | H15: 2 | N15: 3 | O15: 4 | P15: 5 | Q15: 6 | R15: 7 | S15: 8 | T15: 9 | U15: 10 | V15: 11 | W15: 12 | X15: 13 | Y15: 14 | Z15: 15 | AA15: 16 | AB15: 17 | AC15: 18
G16: 1. | H16: СТРОИТЕЛЬСТВО ВОЗДУШНЫХ ЛИНИЙ ЭЛЕКТРОПЕРЕДАЧИ | O16: =SUM(O18:O20) -> 0 | P16: =SUM(P18:P20) -> 0 | Q16: =SUM(Q18:Q20) -> 0 | S16: =SUM(S18:S20) -> 0 | T16: =SUM(T18:T20) -> 0 | U16: =SUM(U18:U20) -> 0 | W16: =SUM(W18:W20) -> 0 | X16: =SUM(X18:X20) -> 0 | Y16: =SUM(Y18:Y20) -> 0 | AA16: =SUM(AA18:AA20) -> 0 | AB16: =SUM(AB18:AB20) -> 0 | AC16: =SUM(AC18:AC20) -> 0
H17: тип опор: | I17: тип провода: | J17: материал провода: | K17: сечение провода: | L17: количество цепей: | M17: уровень напряжения:
B18: 1
B19: 1 | C19: VL | D19: =ROW($D$17) -> 17 | F19: Удалить | G19: =$G$16 & (ROWS($G$18:G19)-2)+1&"." -> 1.1.
B20: 1
H21: Добавить
B22: 1
G23: 2. | H23: СТРОИТЕЛЬСТВО КАБЕЛЬНЫХ ЛИНИЙ ЭЛЕКТРОПЕРЕДАЧИ | O23: =SUM(O25:O27) -> 0 | P23: =SUM(P25:P27) -> 0 | Q23: =SUM(Q25:Q27) -> 0 | S23: =SUM(S25:S27) -> 0 | T23: =SUM(T25:T27) -> 0 | U23: =SUM(U25:U27) -> 0 | W23: =SUM(W25:W27) -> 0 | X23: =SUM(X25:X27) -> 0 | Y23: =SUM(Y25:Y27) -> 0 | AA23: =SUM(AA25:AA27) -> 0 | AB23: =SUM(AB25:AB27) -> 0 | AC23: =SUM(AC25:AC27) -> 0
H24: способ прокладки: | I24: количество жил: | J24: тип изоляции: | K24: сечение провода: | L24: количество кабелей в траншее, канале, туннеле или коллекторе, на галерее или эстакаде, труб в скважине: | M24: уровень напряжения:
B25: 1
B26: 1 | C26: KL | D26: =ROW($D$24) -> 24 | F26: Удалить | G26: =$G$23 & (ROWS($G$25:G26)-2)+1&"." -> 2.1.
B27: 1
H28: Добавить
B29: 1
G30: 3. | H30: СТРОИТЕЛЬСТВО ПУНКТОВ СЕКЦИОНИРОВАНИЯ (РЕКЛОУЗЕРОВ, РАСПРЕДЕЛИТЕЛЬНЫХ ПУНКТОВ, ПЕРЕКЛЮЧАТЕЛЬНЫХ ПУНКТОВ) | O30: =SUM(O32:O34) -> 0 | P30: =SUM(P32:P34) -> 0 | Q30: =SUM(Q32:Q34) -> 0 | S30: =SUM(S32:S34) -> 0 | T30: =SUM(T32:T34) -> 0 | U30: =SUM(U32:U34) -> 0 | W30: =SUM(W32:W34) -> 0 | X30: =SUM(X32:X34) -> 0 | Y30: =SUM(Y32:Y34) -> 0 | AA30: =SUM(AA32:AA34) -> 0 | AB30: =SUM(AB32:AB34) -> 0 | AC30: =SUM(AC32:AC34) -> 0
H31: пункт секционирования: | I31: номинальный ток: | J31: количество ячеек в распределительном или переключательном пункте: | K31: уровень напряжения:
B32: 1
B33: 1 | C33: PS | D33: =ROW($D$31) -> 31 | F33: Удалить | G33: =$G$30 & (ROWS($G$32:G33)-2)+1&"." -> 3.1.
B34: 1
H35: Добавить
B36: 1
G37: 4. | H37: СТРОИТЕЛЬСТВО ТРАНСФОРМАТОРНЫХ ПОДСТАНЦИЙ (ТП), ЗА ИСКЛЮЧЕНИЕМ РАСПРЕДЕЛИТЕЛЬНЫХ ТРАНСФОРМАТОРНЫХ ПОДСТАНЦИЙ (РТП), С УРОВНЕМ НАПРЯЖЕНИЯ ДО 35 КВ | O37: =SUM(O39:O41) -> 0 | P37: =SUM(P39:P41) -> 0 | Q37: =SUM(Q39:Q41) -> 0 | S37: =SUM(S39:S41) -> 0 | T37: =SUM(T39:T41) -> 0 | U37: =SUM(U39:U41) -> 0 | W37: =SUM(W39:W41) -> 0 | X37: =SUM(X39:X41) -> 0 | Y37: =SUM(Y39:Y41) -> 0 | AA37: =SUM(AA39:AA41) -> 0 | AB37: =SUM(AB39:AB41) -> 0 | AC37: =SUM(AC39:AC41) -> 0
H38: уровень напряжения: | I38: количество трансформаторов: | J38: трансформаторная мощность: | K38: тип трансформаторной подстанции:
B39: 1
B40: 1 | C40: TS | D40: =ROW($D$38) -> 38 | F40: Удалить | G40: =$G$37 & (ROWS($G$39:G40)-2)+1&"." -> 4.1.
B41: 1
H42: Добавить
B43: 1
G44: 5. | H44: СТРОИТЕЛЬСТВО РАСПРЕДЕЛИТЕЛЬНЫХ ТРАНСФОРМАТОРНЫХ ПОДСТАНЦИЙ (РТП), С УРОВНЕМ НАПРЯЖЕНИЯ ДО 35 КВ | O44: =SUM(O46:O48) -> 0 | P44: =SUM(P46:P48) -> 0 | Q44: =SUM(Q46:Q48) -> 0 | S44: =SUM(S46:S48) -> 0 | T44: =SUM(T46:T48) -> 0 | U44: =SUM(U46:U48) -> 0 | W44: =SUM(W46:W48) -> 0 | X44: =SUM(X46:X48) -> 0 | Y44: =SUM(Y46:Y48) -> 0 | AA44: =SUM(AA46:AA48) -> 0 | AB44: =SUM(AB46:AB48) -> 0 | AC44: =SUM(AC46:AC48) -> 0
H45: количество трансформаторов: | I45: трансформаторная мощность: | J45: уровень напряжения:
B46: 1
B47: 1 | C47: RTP | D47: =ROW($D$45) -> 45 | F47: Удалить | G47: =$G$44 & (ROWS($G$46:G47)-2)+1&"." -> 5.1.
B48: 1
H49: Добавить
B50: 1
G51: 6. | H51: СТРОИТЕЛЬСТВО ПОДСТАНЦИЙ УРОВНЕМ НАПРЯЖЕНИЯ 35 КВ И ВЫШЕ (ПС) | O51: =SUM(O53:O55) -> 0 | P51: =SUM(P53:P55) -> 0 | Q51: =SUM(Q53:Q55) -> 0 | S51: =SUM(S53:S55) -> 0 | T51: =SUM(T53:T55) -> 0 | U51: =SUM(U53:U55) -> 0 | W51: =SUM(W53:W55) -> 0 | X51: =SUM(X53:X55) -> 0 | Y51: =SUM(Y53:Y55) -> 0 | AA51: =SUM(AA53:AA55) -> 0 | AB51: =SUM(AB53:AB55) -> 0 | AC51: =SUM(AC53:AC55) -> 0
H52: количество трансформаторов: | I52: трансформаторная мощность: | J52: уровень напряжения:
B53: 1
B54: 1 | C54: SP | D54: =ROW($D$52) -> 52 | F54: Удалить | G54: =$G$51 & (ROWS($G$53:G54)-2)+1&"." -> 6.1.
B55: 1
H56: Добавить
B57: 1
G58: 7. | H58: ОБЕСПЕЧЕНИЕ СРЕДСТВАМИ КОММЕРЧЕСКОГО УЧЕТА ЭЛЕКТРИЧЕСКОЙ ЭНЕРГИИ (МОЩНОСТИ) | O58: =SUM(O60:O62) -> 0 | P58: =SUM(P60:P62) -> 0 | Q58: 0 | S58: 0 | T58: 0 | U58: 0 | W58: 0 | X58: 0 | Y58: 0 | AA58: 0 | AB58: 0 | AC58: 0
H59: количество фаз: | I59: тип включения: | J59: уровень напряжения:
B60: 1
B61: 1 | C61: SKU | D61: =ROW($D$59) -> 59 | F61: Удалить | G61: =$G$58 & (ROWS($G$60:G61)-2)+1&"." -> 7.1.
B62: 1
H63: Добавить
B64: 1
G65: * - случае если в субъекте Российской Федерации за 3 предыдущих года не осуществлялось строительство тех объектов электросетевого хозяйства, в отношении которых устанавливаются стандартизированные тарифные ставки либо не осуществлялось обеспечение средствами коммерческого учета электрической энергии (мощности), расчет ставок может производиться исходя из данных за два предыдущих года, в случае отсутствия данных за два года - за предыдущий год, а при отсутствии данных за три года - по планируемым расходам, определенным по сметам, выполненным с применением сметных нормативов.
A66: ddShPr11City_rstop

Sheet Прил. № 1.2 не город
G11: Приложение № 1.2 к Методическим указаниям по определению размера платы за технологическое присоединение к электрическим сетям
A12: dd_name | B12: hide | C12: range_name | D12: address_title | E12: address_svod | G12: Расходы на строительство введенных в эксплуатацию объектов электросетевого хозяйства для целей технологического присоединения и для целей реализации иных мероприятий инвестиционной программы территориальной сетевой организации, а также на обеспечение средствами коммерческого учета электрической энергии (мощности) (заполняется для территорий, не относящихся к городским населенным пунктам)
G13: № п/п | H13: Объект электросетевого хозяйства/Средство коммерческого учета электрической энергии (мощности) | N13: Год ввода объекта 2018 | R13: Год ввода объекта 2019 | V13: Год ввода объекта 2020 | Z13: План*
N14: уровень напряжения, кВ | O14: протяженность (для линий электропередачи), км. / количество (для пунктов секционирования, точек учета ээ), шт. | P14: максимальная мощность, кВт | Q14: расходы на строительство объекта/на обеспечение средствами коммерческого учета электрической энергии (мощности), тыс. руб. | R14: уровень напряжения, кВ | S14: протяженность (для линий электропередачи), км. / количество (для пунктов секционирования, точек учета ээ), шт. | T14: максимальная мощность, кВт | U14: расходы на строительство объекта/на обеспечение средствами коммерческого учета электрической энергии (мощности), тыс. руб. | V14: уровень напряжения, кВ | W14: протяженность (для линий электропередачи), км. / количество (для пунктов секционирования, точек учета ээ), шт. | X14: максимальная мощность, кВт | Y14: расходы на строительство объекта/на обеспечение средствами коммерческого учета электрической энергии (мощности), тыс. руб. | Z14: уровень напряжения, кВ | AA14: протяженность (для линий электропередачи), км. / количество (для пунктов секционирования, точек учета ээ), шт. | AB14: максимальная мощность, кВт | AC14: расходы на строительство объекта/на обеспечение средствами коммерческого учета электрической энергии (мощности), тыс. руб.
A15: ddShPr12Cont_rstart | G15: 1 | H15: 2 | N15: 3 | O15: 4 | P15: 5 | Q15: 6 | R15: 7 | S15: 8 | T15: 9 | U15: 10 | V15: 11 | W15: 12 | X15: 13 | Y15: 14 | Z15: 15 | AA15: 16 | AB15: 17 | AC15: 18
G16: 1. | H16: СТРОИТЕЛЬСТВО ВОЗДУШНЫХ ЛИНИЙ ЭЛЕКТРОПЕРЕДАЧИ | O16: =SUM(O18:O20) -> 0 | P16: =SUM(P18:P20) -> 0 | Q16: =SUM(Q18:Q20) -> 0 | S16: =SUM(S18:S20) -> 0 | T16: =SUM(T18:T20) -> 0 | U16: =SUM(U18:U20) -> 0 | W16: =SUM(W18:W20) -> 0 | X16: =SUM(X18:X20) -> 0 | Y16: =SUM(Y18:Y20) -> 0 | AA16: =SUM(AA18:AA20) -> 0 | AB16: =SUM(AB18:AB20) -> 0 | AC16: =SUM(AC18:AC20) -> 0
H17: тип опор: | I17: тип провода: | J17: материал провода: | K17: сечение провода: | L17: количество цепей: | M17: уровень напряжения:
B18: 1
B19: 1 | C19: VL | D19: =ROW($D$17) -> 17 | F19: Удалить | G19: =$G$16 & (ROWS($G$18:G19)-2)+1&"." -> 1.1.
B20: 1
H21: Добавить
B22: 1
G23: 2. | H23: СТРОИТЕЛЬСТВО КАБЕЛЬНЫХ ЛИНИЙ ЭЛЕКТРОПЕРЕДАЧИ | O23: =SUM(O25:O27) -> 0 | P23: =SUM(P25:P27) -> 0 | Q23: =SUM(Q25:Q27) -> 0 | S23: =SUM(S25:S27) -> 0 | T23: =SUM(T25:T27) -> 0 | U23: =SUM(U25:U27) -> 0 | W23: =SUM(W25:W27) -> 0 | X23: =SUM(X25:X27) -> 0 | Y23: =SUM(Y25:Y27) -> 0 | AA23: =SUM(AA25:AA27) -> 0 | AB23: =SUM(AB25:AB27) -> 0 | AC23: =SUM(AC25:AC27) -> 0
H24: способ прокладки: | I24: количество жил: | J24: тип изоляции: | K24: сечение провода: | L24: количество кабелей в траншее, канале, туннеле или коллекторе, на галерее или эстакаде, труб в скважине: | M24: уровень напряжения:
B25: 1
B26: 1 | C26: KL | D26: =ROW($D$24) -> 24 | F26: Удалить | G26: =$G$23 & (ROWS($G$25:G26)-2)+1&"." -> 2.1.
B27: 1
H28: Добавить
B29: 1
G30: 3. | H30: СТРОИТЕЛЬСТВО ПУНКТОВ СЕКЦИОНИРОВАНИЯ (РЕКЛОУЗЕРОВ, РАСПРЕДЕЛИТЕЛЬНЫХ ПУНКТОВ, ПЕРЕКЛЮЧАТЕЛЬНЫХ ПУНКТОВ) | O30: =SUM(O32:O34) -> 0 | P30: =SUM(P32:P34) -> 0 | Q30: =SUM(Q32:Q34) -> 0 | S30: =SUM(S32:S34) -> 0 | T30: =SUM(T32:T34) -> 0 | U30: =SUM(U32:U34) -> 0 | W30: =SUM(W32:W34) -> 0 | X30: =SUM(X32:X34) -> 0 | Y30: =SUM(Y32:Y34) -> 0 | AA30: =SUM(AA32:AA34) -> 0 | AB30: =SUM(AB32:AB34) -> 0 | AC30: =SUM(AC32:AC34) -> 0
H31: пункт секционирования: | I31: номинальный ток: | K31: уровень напряжения:
B32: 1
B33: 1 | C33: PS | D33: =ROW($D$31) -> 31 | F33: Удалить | G33: =$G$30 & (ROWS($G$32:G33)-2)+1&"." -> 3.1.
B34: 1
H35: Добавить
B36: 1
G37: 4. | H37: СТРОИТЕЛЬСТВО ТРАНСФОРМАТОРНЫХ ПОДСТАНЦИЙ (ТП), ЗА ИСКЛЮЧЕНИЕМ РАСПРЕДЕЛИТЕЛЬНЫХ ТРАНСФОРМАТОРНЫХ ПОДСТАНЦИЙ (РТП), С УРОВНЕМ НАПРЯЖЕНИЯ ДО 35 КВ | O37: =SUM(O39:O41) -> 0 | P37: =SUM(P39:P41) -> 0 | Q37: =SUM(Q39:Q41) -> 0 | S37: =SUM(S39:S41) -> 0 | T37: =SUM(T39:T41) -> 0 | U37: =SUM(U39:U41) -> 0 | W37: =SUM(W39:W41) -> 0 | X37: =SUM(X39:X41) -> 0 | Y37: =SUM(Y39:Y41) -> 0 | AA37: =SUM(AA39:AA41) -> 0 | AB37: =SUM(AB39:AB41) -> 0 | AC37: =SUM(AC39:AC41) -> 0
H38: уровень напряжения: | I38: количество трансформаторов: | J38: трансформаторная мощность: | K38: тип трансформаторной подстанции:
B39: 1
B40: 1 | C40: TS | D40: =ROW($D$38) -> 38 | F40: Удалить | G40: =$G$37 & (ROWS($G$39:G40)-2)+1&"." -> 4.1.
B41: 1
H42: Добавить
B43: 1
G44: 5. | H44: СТРОИТЕЛЬСТВО РАСПРЕДЕЛИТЕЛЬНЫХ ТРАНСФОРМАТОРНЫХ ПОДСТАНЦИЙ (РТП), С УРОВНЕМ НАПРЯЖЕНИЯ ДО 35 КВ | O44: =SUM(O46:O48) -> 0 | P44: =SUM(P46:P48) -> 0 | Q44: =SUM(Q46:Q48) -> 0 | S44: =SUM(S46:S48) -> 0 | T44: =SUM(T46:T48) -> 0 | U44: =SUM(U46:U48) -> 0 | W44: =SUM(W46:W48) -> 0 | X44: =SUM(X46:X48) -> 0 | Y44: =SUM(Y46:Y48) -> 0 | AA44: =SUM(AA46:AA48) -> 0 | AB44: =SUM(AB46:AB48) -> 0 | AC44: =SUM(AC46:AC48) -> 0
H45: количество трансформаторов: | I45: трансформаторная мощность: | J45: уровень напряжения:
B46: 1
B47: 1 | C47: RTP | D47: =ROW($D$45) -> 45 | F47: Удалить | G47: =$G$44 & (ROWS($G$46:G47)-2)+1&"." -> 5.1.
B48: 1
H49: Добавить
B50: 1
G51: 6. | H51: СТРОИТЕЛЬСТВО ПОДСТАНЦИЙ УРОВНЕМ НАПРЯЖЕНИЯ 35 КВ И ВЫШЕ (ПС) | O51: =SUM(O53:O55) -> 0 | P51: =SUM(P53:P55) -> 0 | Q51: =SUM(Q53:Q55) -> 0 | S51: =SUM(S53:S55) -> 0 | T51: =SUM(T53:T55) -> 0 | U51: =SUM(U53:U55) -> 0 | W51: =SUM(W53:W55) -> 0 | X51: =SUM(X53:X55) -> 0 | Y51: =SUM(Y53:Y55) -> 0 | AA51: =SUM(AA53:AA55) -> 0 | AB51: =SUM(AB53:AB55) -> 0 | AC51: =SUM(AC53:AC55) -> 0
H52: количество трансформаторов: | I52: трансформаторная мощность: | J52: уровень напряжения:
B53: 1
B54: 1 | C54: SP | D54: =ROW($D$52) -> 52 | F54: Удалить | G54: =$G$51 & (ROWS($G$53:G54)-2)+1&"." -> 6.1.
B55: 1
H56: Добавить
B57: 1
G58: 7. | H58: ОБЕСПЕЧЕНИЕ СРЕДСТВАМИ КОММЕРЧЕСКОГО УЧЕТА ЭЛЕКТРИЧЕСКОЙ ЭНЕРГИИ (МОЩНОСТИ) | O58: =SUM(O60:O62) -> 0 | P58: =SUM(P60:P62) -> 0 | Q58: 0 | S58: 0 | T58: 0 | U58: 0 | W58: 0 | X58: 0 | Y58: 0 | AA58: 0 | AB58: 0 | AC58: 0
H59: количество фаз: | I59: тип включения: | J59: уровень напряжения:
B60: 1
B61: 1 | C61: SKU | D61: =ROW($D$59) -> 59 | F61: Удалить | G61: =$G$58 & (ROWS($G$60:G61)-2)+1&"." -> 7.1.
B62: 1
H63: Добавить
B64: 1
G65: * - случае если в субъекте Российской Федерации за 3 предыдущих года не осуществлялось строительство тех объектов электросетевого хозяйства, в отношении которых устанавливаются стандартизированные тарифные ставки либо не осуществлялось обеспечение средствами коммерческого учета электрической энергии (мощности), расчет ставок может производиться исходя из данных за два предыдущих года, в случае отсутствия данных за два года - за предыдущий год, а при отсутствии данных за три года - по планируемым расходам, определенным по сметам, выполненным с применением сметных нормативов.
A66: ddShPr12Cont_rstop

Sheet Прил. № 2.1 (год-3)
A1: Приложение № 2.1 к Методическим указаниям по определению размера платы за технологическое присоединение к электрическим сетям
A2: ="Расходы на выполнение мероприятий по технологическому присоединению, предусмотренных пунктами 'а' и 'в' пункта 16 Методических указаний за " &IF(Титульный!C12="","--- выберите период на листе Титульный ---",(Титульный!C12-3)) & " год" -> Расходы на выполнение мероприятий по технологическому присоединению, предусмотренных пунктами 'а' и 'в' пункта 16 Методических указаний за 2018 год
A3: № п/п | B3: Наименование мероприятий | C3: ="Год формирования расходов (согласно учетной политике сетевой организации) за " &IF(Титульный!C12="","--- выберите период на листе Титульный ---",(Титульный!C12-3)) & " год" -> Год формирования расходов (согласно учетной политике сетевой организации) за 2018 год
C4: Информация для расчета стандартизированной тарифной ставки С1 с учетом дифференциации по уровням напряжения и максимальной мощности | R4: расходы на одно присоединение (руб. на 1 ТП)
C5: расходы согласно Приложению № 3 по каждому мероприятию (тыс. руб.) | H5: количество технологических присоединений (шт.) | M5: объем максимальной мощности (кВт) | Q5: Итого расходы на одно присоединение (тыс.руб. на 1 ТП) (гр.7/ гр.12)
C6: до 20 кВ включительно | E6: свыше 20 кВ | G6: Итого (гр.3+гр.4+гр.5 +гр.6) | H6: до 20 кВ включительно | J6: свыше 20 кВ | L6: Итого (гр.8+гр.9+гр.10+гр.11) | M6: до 20 кВ включительно | O6: свыше 20 кВ | R6: до 35 кВ | T6: свыше 35 кВ включительно
C7: до 670 кВт | D7: свыше 670 кВт включительно | E7: до 670 кВт | F7: свыше 670 кВт включительно | H7: до 670 кВт | I7: свыше 670 кВт включительно | J7: до 670 кВт | K7: свыше 670 кВт включительно | M7: до 670 кВт | N7: свыше 670 кВт включительно | O7: до 670 кВт | P7: свыше 670 кВт включительно | R7: до 8900 кВт | S7: свыше 8900 кВт включительно | T7: до 8900 кВт | U7: свыше 8900 кВт включительно
A8: 1 | B8: 2 | C8: 3 | D8: 4 | E8: 5 | F8: 6 | G8: 7 | H8: 8 | I8: 9 | J8: 10 | K8: 11 | L8: 12 | M8: 13 | N8: 14 | O8: 15 | P8: 16 | Q8: 17 | R8: 15 | S8: 16 | T8: 17 | U8: 18
A9: 1 | B9: Подготовка и выдача сетевой организацией технических условий заявителю | C9: ='Прил. № 3.1 (''а'' п.16)'!E5 -> 21.288 | G9: =C9+D9+E9+F9 -> 21.288 | H9: 3 | L9: =H9+I9+J9+K9 -> 3 | M9: 108 | Q9: =IF(L9=0,0, G9/L9) -> 7.096 | R9: =IF(H9=0,0,C9/H9) -> 7.096 | S9: 0 | T9: 0 | U9: 0
A10: 2 | B10: Проверка сетевой организацией выполнения заявителем технических условий | C10: - | D10: - | E10: - | F10: - | G10: - | H10: - | I10: - | J10: - | K10: - | L10: - | M10: - | N10: - | O10: - | P10: - | Q10: -
A11: 3 | B11: Итого | C11: =C9+C10 ->  | D11: =D9+D10 -> 
A12: 2.1 | B12: Выдача сетевой организацией акта об осуществлении технологического присоединения заявителям, указанным в пунктах 12(1) и 14 Правил технологического присоединения, кроме случаев, если технологическое присоединение энергопринимающих устройств таких заявителей осуществляется на уровне напряжения выше 0,4 кВ | C12: ='Прил. № 3.2 (''в'' п.16)'!E5 -> 28.772 | G12: =C12+D12+E12+F12 -> 28.772 | H12: 3 | L12: =H12+I12+J12+K12 -> 3 | M12: 108 | Q12: =IF(L12=0,0, G12/L12) -> 9.590666667 | R12: =IF(H12=0,0,C12/H12) -> 9.590666667 | S12: 0 | T12: 0 | U12: 0
A13: 2.2 | B13: Проверка сетевой организацией выполнения технических условий заявителями (за исключением заявителей, указанных в пункте 2.1 таблицы) | G13: =C13+D13+E13+F13 -> 0 | L13: =H13+I13+J13+K13 -> 0 | Q13: =IF(L13=0,0, G13/L13) -> 0 | R13: 0 | S13: 0 | T13: 0 | U13: 0

Sheet Прил. № 2.2 (год-2)
A1: Приложение № 2.2 к Методическим указаниям по определению размера платы за технологическое присоединение к электрическим сетям
A2: ="Расходы на выполнение мероприятий по технологическому присоединению, предусмотренных пунктами 'а' и 'в' пункта 16 Методических указаний за " &IF(Титульный!C12="","--- выберите период на листе Титульный ---",(Титульный!C12-2)) & " год" -> Расходы на выполнение мероприятий по технологическому присоединению, предусмотренных пунктами 'а' и 'в' пункта 16 Методических указаний за 2019 год
A3: № п/п | B3: Наименование мероприятий | C3: ="Год формирования расходов (согласно учетной политике сетевой организации) за " &IF(Титульный!C12="","--- выберите период на листе Титульный ---",(Титульный!C12-2)) & " год" -> Год формирования расходов (согласно учетной политике сетевой организации) за 2019 год
C4: Информация для расчета стандартизированной тарифной ставки С1 с учетом дифференциации по уровням напряжения и максимальной мощности | R4: расходы на одно присоединение (руб. на 1 ТП)
C5: расходы согласно Приложению № 3 по каждому мероприятию (тыс. руб.) | H5: количество технологических присоединений (шт.) | M5: объем максимальной мощности (кВт) | Q5: Итого расходы на одно присоединение (тыс.руб. на 1 ТП) (гр.7/ гр.12)
C6: до 20 кВ включительно | E6: свыше 20 кВ | G6: Итого (гр.3+гр.4+гр.5 +гр.6) | H6: до 20 кВ включительно | J6: свыше 20 кВ | L6: Итого (гр.8+гр.9+гр.10+гр.11) | M6: до 20 кВ включительно | O6: свыше 20 кВ | R6: до 35 кВ | T6: свыше 35 кВ включительно
C7: до 670 кВт | D7: свыше 670 кВт включительно | E7: до 670 кВт | F7: свыше 670 кВт включительно | H7: до 670 кВт | I7: свыше 670 кВт включительно | J7: до 670 кВт | K7: свыше 670 кВт включительно | M7: до 670 кВт | N7: свыше 670 кВт включительно | O7: до 670 кВт | P7: свыше 670 кВт включительно | R7: до 8900 кВт | S7: свыше 8900 кВт включительно | T7: до 8900 кВт | U7: свыше 8900 кВт включительно
A8: 1 | B8: 2 | C8: 3 | D8: 4 | E8: 5 | F8: 6 | G8: 7 | H8: 8 | I8: 9 | J8: 10 | K8: 11 | L8: 12 | M8: 13 | N8: 14 | O8: 15 | P8: 16 | Q8: 17 | R8: 15 | S8: 16 | T8: 17 | U8: 18
A9: 1 | B9: Подготовка и выдача сетевой организацией технических условий заявителю | C9: 24.50697 | D9: 8.16899 | G9: =C9+D9+E9+F9 -> 32.67596 | H9: 3 | I9: 1 | L9: =H9+I9+J9+K9 -> 4 | M9: 36 | N9: 900 | Q9: =IF(L9=0,0, G9/L9) -> 8.16899 | R9: =IF(H9=0,0,C9/H9) -> 8.16899 | S9: 8.16899 | T9: 0 | U9: 0
A10: 2 | B10: Проверка сетевой организацией выполнения заявителем технических условий | C10: - | D10: - | E10: - | F10: - | G10: - | H10: - | I10: - | J10: - | K10: - | L10: - | M10: - | N10: - | O10: - | P10: - | Q10: -
A11: 3 | B11: Итого | C11: =C9+C10 ->  | D11: =D9+D10 -> 
A12: 2.1 | B12: Выдача сетевой организацией акта об осуществлении технологического присоединения заявителям, указанным в пунктах 12(1) и 14 Правил технологического присоединения, кроме случаев, если технологическое присоединение энергопринимающих устройств таких заявителей осуществляется на уровне напряжения выше 0,4 кВ | C12: 29.82747 | G12: =C12+D12+E12+F12 -> 29.82747 | H12: 3 | L12: =H12+I12+J12+K12 -> 3 | M12: 36 | Q12: =IF(L12=0,0, G12/L12) -> 9.94249 | R12: =IF(H12=0,0,C12/H12) -> 9.94249 | S12: 0 | T12: 0 | U12: 0
A13: 2.2 | B13: Проверка сетевой организацией выполнения технических условий заявителями (за исключением заявителей, указанных в пункте 2.1 таблицы) | D13: 12.7361 | G13: =C13+D13+E13+F13 -> 12.7361 | I13: 1 | L13: =H13+I13+J13+K13 -> 1 | N13: 900 | Q13: =IF(L13=0,0, G13/L13) -> 12.7361 | R13: 0 | S13: 12.7361 | T13: 0 | U13: 0

Sheet Прил. № 2.3 (год-1)
A1: Приложение № 2.3 к Методическим указаниям по определению размера платы за технологическое присоединение к электрическим сетям
A2: ="Расходы на выполнение мероприятий по технологическому присоединению, предусмотренных пунктами 'а' и 'в' пункта 16 Методических указаний за " &IF(Титульный!C12="","--- выберите период на листе Титульный ---",(Титульный!C12-1)) & " год" -> Расходы на выполнение мероприятий по технологическому присоединению, предусмотренных пунктами 'а' и 'в' пункта 16 Методических указаний за 2020 год
A3: № п/п | B3: Наименование мероприятий | C3: ="Год формирования расходов (согласно учетной политике сетевой организации) за " &IF(Титульный!C12="","--- выберите период на листе Титульный ---",(Титульный!C12-1)) & " год" -> Год формирования расходов (согласно учетной политике сетевой организации) за 2020 год
C4: Информация для расчета стандартизированной тарифной ставки С1 с учетом дифференциации по уровням напряжения и максимальной мощности | R4: расходы на одно присоединение (руб. на 1 ТП)
C5: расходы согласно Приложению № 3 по каждому мероприятию (тыс. руб.) | H5: количество технологических присоединений (шт.) | M5: объем максимальной мощности (кВт) | Q5: Итого расходы на одно присоединение (тыс.руб. на 1 ТП) (гр.7/ гр.12)
C6: до 20 кВ включительно | E6: свыше 20 кВ | G6: Итого (гр.3+гр.4+гр.5 +гр.6) | H6: до 20 кВ включительно | J6: свыше 20 кВ | L6: Итого (гр.8+гр.9+гр.10+гр.11) | M6: до 20 кВ включительно | O6: свыше 20 кВ | R6: до 35 кВ | T6: свыше 35 кВ включительно
C7: до 670 кВт | D7: свыше 670 кВт включительно | E7: до 670 кВт | F7: свыше 670 кВт включительно | H7: до 670 кВт | I7: свыше 670 кВт включительно | J7: до 670 кВт | K7: свыше 670 кВт включительно | M7: до 670 кВт | N7: свыше 670 кВт включительно | O7: до 670 кВт | P7: свыше 670 кВт включительно | R7: до 8900 кВт | S7: свыше 8900 кВт включительно | T7: до 8900 кВт | U7: свыше 8900 кВт включительно
A8: 1 | B8: 2 | C8: 3 | D8: 4 | E8: 5 | F8: 6 | G8: 7 | H8: 8 | I8: 9 | J8: 10 | K8: 11 | L8: 12 | M8: 13 | N8: 14 | O8: 15 | P8: 16 | Q8: 17 | R8: 15 | S8: 16 | T8: 17 | U8: 18
A9: 1 | B9: Подготовка и выдача сетевой организацией технических условий заявителю | G9: =C9+D9+E9+F9 -> 0 | L9: =H9+I9+J9+K9 -> 0 | Q9: =IF(L9=0,0, G9/L9) -> 0 | R9: =IF(H9=0,0,C9/H9) -> 0 | S9: 0 | T9: 0 | U9: 0
A10: 2 | B10: Проверка сетевой организацией выполнения заявителем технических условий | C10: - | D10: - | E10: - | F10: - | G10: - | H10: - | I10: - | J10: - | K10: - | L10: - | M10: - | N10: - | O10: - | P10: - | Q10: -
A11: 3 | B11: Итого | C11: =C9+C10 ->  | D11: =D9+D10 -> 
A12: 2.1 | B12: Выдача сетевой организацией акта об осуществлении технологического присоединения заявителям, указанным в пунктах 12(1) и 14 Правил технологического присоединения, кроме случаев, если технологическое присоединение энергопринимающих устройств таких заявителей осуществляется на уровне напряжения выше 0,4 кВ | G12: =C12+D12+E12+F12 -> 0 | L12: =H12+I12+J12+K12 -> 0 | Q12: =IF(L12=0,0, G12/L12) -> 0 | R12: =IF(H12=0,0,C12/H12) -> 0 | S12: 0 | T12: 0 | U12: 0
A13: 2.2 | B13: Проверка сетевой организацией выполнения технических условий заявителями (за исключением заявителей, указанных в пункте 2.1 таблицы) | G13: =C13+D13+E13+F13 -> 0 | L13: =H13+I13+J13+K13 -> 0 | Q13: =IF(L13=0,0, G13/L13) -> 0 | R13: 0 | S13: 0 | T13: 0 | U13: 0

Sheet Прил. № 3.1 ('а' п.16)
A1: Приложение № 3.1 к Методическим указаниям по определению размера платы за технологическое присоединение к электрическим сетям
A2: ="Расчет фактических расходов на выполнение мероприятий по технологическому присоединению, связанных с подготовкой и выдачей сетевой организацией технических условий заявителю, предусмотренных подпунктом 'а' пункта 16 Методических указаний за " &IF(Титульный!C12="","--- выберите период на листе Титульный ---",(Титульный!C12-3) & "–" & (Титульный!C12-1) ) & " годы" -> Расчет фактических расходов на выполнение мероприятий по технологическому присоединению, связанных с подготовкой и выдачей сетевой организацией технических условий заявителю, предусмотренных подпунктом 'а' пункта 16 Методических указаний за 2018–2020 годы
A3: № п/п | B3: Показатели | C3: =CONCATENATE("Данные за " &IF(Титульный!C12="","--- выберите период на листе Титульный ---",(Титульный!C12-1)) & " год,", CHAR(10)," тыс. рублей") -> Данные за 2020 год, тыс. рублей | D3: =CONCATENATE("Данные за " &IF(Титульный!C12="","--- выберите период на листе Титульный ---",(Титульный!C12-2)) & " год,", CHAR(10)," тыс. рублей") -> Данные за 2019 год, тыс. рублей | E3: =CONCATENATE("Данные за " &IF(Титульный!C12="","--- выберите период на листе Титульный ---",(Титульный!C12-3)) & " год,", CHAR(10)," тыс. рублей") -> Данные за 2018 год, тыс. рублей | F3: Итого, тыс. рублей
A4: 1 | B4: 2 | C4: 3 | D4: 4 | E4: 5 | F4: 6
A5: 1 | B5: Расходы по выполнению мероприятий по технологическому присоединению, всего | C5: =C6+C7+C8+C9+C10+C19 -> 0 | D5: =D6+D7+D8+D9+D10+D19 -> 32.676 | E5: =E6+E7+E8+E9+E10+E19 -> 21.288 | F5: =C5+D5+E5 -> 53.964
A6: 1.1 | B6: Вспомогательные материалы | F6: =C6+D6+E6 -> 0
A7: 1.2 | B7: Энергия на хозяйственные нужды | F7: 0
A8: 1.3 | B8: Оплата труда ППП | D8: 22.102 | E8: 14.399 | F8: 36.501
A9: 1.4 | B9: Отчисления на страховые взносы | D9: 7.073 | E9: 4.608 | F9: 11.681
A10: 1.5 | B10: Прочие расходы, всего, в том числе: | C10: =SUM(C11:C13) -> 0 | D10: =SUM(D11:D13) -> 3.501 | E10: =SUM(E11:E13) -> 2.281 | F10: 5.782
A11: 1.5.1 | B11: работы и услуги производственного характера | F11: 0
A12: 1.5.2 | B12: налоги и сборы, уменьшающие налогооблагаемую базу на прибыль организаций, всего | F12: 0
A13: 1.5.3 | B13: работы и услуги непроизводственного характера, в том числе: | C13: =SUM(C14:C18) -> 0 | D13: =SUM(D14:D18) -> 3.501 | E13: =SUM(E14:E18) -> 2.281 | F13: 5.782
A14: 1.5.3.1 | B14: услуги связи | F14: 0
A15: 1.5.3.2 | B15: расходы на охрану и пожарную безопасность | F15: 0
A16: 1.5.3.3 | B16: расходы на информационное обслуживание, иные услуги, связанные с деятельностью по технологическому присоединению | F16: 0
A17: 1.5.3.4 | B17: плата за аренду имущества | F17: 0
A18: 1.5.3.5 | B18: другие прочие расходы, связанные с производством и реализацией | D18: 3.501 | E18: 2.281 | F18: 5.782
A19: 1.6 | B19: Внереализованные расходы, всего | C19: =SUM(C20:C23) -> 0 | D19: =SUM(D20:D23) -> 0 | E19: =SUM(E20:E23) -> 0 | F19: 0
A20: 1.6.1 | B20: расходы на услуги банков | F20: 0
A21: 1.6.2 | B21: % за пользование кредитом | F21: 0
A22: 1.6.3 | B22: прочие обоснованные расходы | F22: 0
A23: 1.6.4 | B23: денежные выплаты социального характера ( по Коллективному договору) | F23: 0

Sheet Прил. № 3.2 ('в' п.16)
A1: Приложение № 3.2 к Методическим указаниям по определению размера платы за технологическое присоединение к электрическим сетям
A2: ="Расчет фактических расходов на выполнение мероприятий по технологическому присоединению, связанных с проверкой сетевой организацией выполнения заявителем технических условий, предусмотренных подпунктом 'в' пункта 16 Методических указаний за " &IF(Титульный!C12="","--- выберите период на листе Титульный ---",(Титульный!C12-3) & "–" & (Титульный!C12-1) ) & " годы" -> Расчет фактических расходов на выполнение мероприятий по технологическому присоединению, связанных с проверкой сетевой организацией выполнения заявителем технических условий, предусмотренных подпунктом 'в' пункта 16 Методических указаний за 2018–2020 годы
A3: № п/п | B3: Показатели | C3: =CONCATENATE("Данные за " &IF(Титульный!C12="","--- выберите период на листе Титульный ---",(Титульный!C12-1)) & " год,", CHAR(10)," тыс. рублей") -> Данные за 2020 год, тыс. рублей | D3: =CONCATENATE("Данные за " &IF(Титульный!C12="","--- выберите период на листе Титульный ---",(Титульный!C12-2)) & " год,", CHAR(10)," тыс. рублей") -> Данные за 2019 год, тыс. рублей | E3: =CONCATENATE("Данные за " &IF(Титульный!C12="","--- выберите период на листе Титульный ---",(Титульный!C12-3)) & " год,", CHAR(10)," тыс. рублей") -> Данные за 2018 год, тыс. рублей | F3: Итого, тыс. рублей
A4: 1 | B4: 2 | C4: 3 | D4: 4 | E4: 5 | F4: 6
A5: 1 | B5: Расходы по выполнению мероприятий по технологическому присоединению, всего | C5: =C6+C7+C8+C9+C10+C19 -> 0 | D5: =D6+D7+D8+D9+D10+D19 -> 42.564 | E5: =E6+E7+E8+E9+E10+E19 -> 28.772 | F5: =C5+D5+E5 -> 71.336
A6: 1.1 | B6: Вспомогательные материалы | F6: =C6+D6+E6 -> 0
A7: 1.2 | B7: Энергия на хозяйственные нужды | F7: 0
A8: 1.3 | B8: Оплата труда ППП | D8: 25.283 | E8: 17.212 | F8: 42.495
A9: 1.4 | B9: Отчисления на страховые взносы | D9: 8.091 | E9: 5.508 | F9: 13.599
A10: 1.5 | B10: Прочие расходы, всего, в том числе: | C10: =SUM(C11:C13) -> 0 | D10: =SUM(D11:D13) -> 9.19 | E10: =SUM(E11:E13) -> 6.052 | F10: 15.242
A11: 1.5.1 | B11: работы и услуги производственного характера | F11: 0
A12: 1.5.2 | B12: налоги и сборы, уменьшающие налогооблагаемую базу на прибыль организаций, всего | F12: 0
A13: 1.5.3 | B13: работы и услуги непроизводственного характера, в том числе: | C13: =SUM(C14:C18) -> 0 | D13: =SUM(D14:D18) -> 9.19 | E13: =SUM(E14:E18) -> 6.052 | F13: 15.242
A14: 1.5.3.1 | B14: услуги связи | F14: 0
A15: 1.5.3.2 | B15: расходы на охрану и пожарную безопасность | F15: 0
A16: 1.5.3.3 | B16: расходы на информационное обслуживание, иные услуги, связанные с деятельностью по технологическому присоединению | F16: 0
A17: 1.5.3.4 | B17: плата за аренду имущества | F17: 0
A18: 1.5.3.5 | B18: другие прочие расходы, связанные с производством и реализацией | D18: 9.19 | E18: 6.052 | F18: 15.242
A19: 1.6 | B19: Внереализованные расходы, всего | C19: =SUM(C20:C23) -> 0 | D19: =SUM(D20:D23) -> 0 | E19: =SUM(E20:E23) -> 0 | F19: 0
A20: 1.6.1 | B20: расходы на услуги банков | F20: 0
A21: 1.6.2 | B21: % за пользование кредитом | F21: 0
A22: 1.6.3 | B22: прочие обоснованные расходы | F22: 0
A23: 1.6.4 | B23: денежные выплаты социального характера ( по Коллективному договору) | F23: 0

Sheet Прил. № 5.1 город
R11: Приложение № 5.1 к Методическим указаниям по определению размера платы за технологическое присоединение к электрическим сетям
A12: dd_hide/show | B12: hide | C12: range_name | D12: address_title | E12: address_svod | G12: Сведения о строительстве линий электропередачи, пунктов секционирования, а также об обеспечении средствами коммерческого учета электрической энергии (мощности) при технологическом присоединении энергопринимающих устройств максимальной мощностью менее 670 кВт и на уровне напряжения 20 кВ и менее (заполняется для территорий городских населенных пунктов)
G13: № п/п | H13: Объект электросетевого хозяйства/Средство коммерческого учета электрической энергии (мощности) | N13: Год ввода объекта 2018 | Q13: Год ввода объекта 2019 | T13: Год ввода объекта 2020
N14: уровень напряжения, кВ | O14: протяженность (для линий электропередачи), км. / количество (для пунктов секционирования, точек учета ээ), шт. | P14: присоединенная максимальная мощность (менее 670 кВт), кВт | Q14: уровень напряжения, кВ | R14: протяженность (для линий электропередачи), км. / количество (для пунктов секционирования, точек учета ээ), шт. | S14: присоединенная максимальная мощность (менее 670 кВт), кВт | T14: уровень напряжения, кВ | U14: протяженность (для линий электропередачи), км. / количество (для пунктов секционирования, точек учета ээ), шт. | V14: присоединенная максимальная мощность (менее 670 кВт), кВт
A15: ddShPr51_rstart | G15: 1 | H15: 2 | N15: 3 | O15: 4 | P15: 5 | Q15: 6 | R15: 7 | S15: 8 | T15: 9 | U15: 10 | V15: 11
G16: 1. | H16: СТРОИТЕЛЬСТВО ВОЗДУШНЫХ ЛИНИЙ ЭЛЕКТРОПЕРЕДАЧИ | O16: =SUM(O18:O20) -> 0 | P16: =SUM(P18:P20) -> 0 | R16: =SUM(R18:R20) -> 0 | S16: =SUM(S18:S20) -> 0 | U16: =SUM(U18:U20) -> 0 | V16: =SUM(V18:V20) -> 0
H17: тип опор: | I17: тип провода: | J17: материал провода: | K17: сечение провода: | L17: количество цепей: | M17: уровень напряжения:
B18: 1
B19: 1 | C19: VL | D19: =ROW($D$17) -> 17 | F19: Удалить | G19: =$G$16 & (ROWS($G$18:G19)-2)+1&"." -> 1.1.
B20: 1
H21: Добавить
B22: 1
G23: 2. | H23: СТРОИТЕЛЬСТВО КАБЕЛЬНЫХ ЛИНИЙ ЭЛЕКТРОПЕРЕДАЧИ | O23: =SUM(O25:O27) -> 0 | P23: =SUM(P25:P27) -> 0 | R23: =SUM(R25:R27) -> 0 | S23: =SUM(S25:S27) -> 0 | U23: =SUM(U25:U27) -> 0 | V23: =SUM(V25:V27) -> 0
H24: способ прокладки: | I24: количество жил: | J24: тип изоляции: | K24: сечение провода: | L24: количество кабелей в траншее, канале, туннеле или коллекторе, на галерее или эстакаде, труб в скважине: | M24: уровень напряжения:
B25: 1
B26: 1 | C26: KL | D26: =ROW($D$24) -> 24 | F26: Удалить | G26: =$G$23 & (ROWS($G$25:G26)-2)+1&"." -> 2.1.
B27: 1
H28: Добавить
B29: 1
G30: 3. | H30: СТРОИТЕЛЬСТВО ПУНКТОВ СЕКЦИОНИРОВАНИЯ (РЕКЛОУЗЕРОВ, РАСПРЕДЕЛИТЕЛЬНЫХ ПУНКТОВ, ПЕРЕКЛЮЧАТЕЛЬНЫХ ПУНКТОВ) | O30: =SUM(O32:O34) -> 0 | P30: =SUM(P32:P34) -> 0 | R30: =SUM(R32:R34) -> 0 | S30: =SUM(S32:S34) -> 0 | U30: =SUM(U32:U34) -> 0 | V30: =SUM(V32:V34) -> 0
H31: пункт секционирования: | I31: номинальный ток: | J31: количество ячеек в распределительном или переключательном пункте: | K31: уровень напряжения:
B32: 1
B33: 1 | C33: PS | D33: =ROW($D$31) -> 31 | F33: Удалить | G33: =$G$30 & (ROWS($G$32:G33)-2)+1&"." -> 3.1.
B34: 1
H35: Добавить
B36: 1
G37: 4. | H37: ОБЕСПЕЧЕНИЕ СРЕДСТВАМИ КОММЕРЧЕСКОГО УЧЕТА ЭЛЕКТРИЧЕСКОЙ ЭНЕРГИИ (МОЩНОСТИ) | O37: =SUM(O39:O41) -> 0 | P37: =SUM(P39:P41) -> 0 | R37: 0 | S37: 0 | U37: 0 | V37: 0
H38: количество фаз: | I38: тип включения: | J38: уровень напряжения:
B39: 1
B40: 1 | C40: SKU | D40: =ROW($D$38) -> 38 | F40: Удалить | G40: =$G$37 & (ROWS($G$39:G40)-2)+1&"." -> 4.1.
B41: 1
H42: Добавить
B43: 1
A44: ddShPr51_rstop

Sheet Прил. № 5.2 не город
R11: Приложение № 5.2 к Методическим указаниям по определению размера платы за технологическое присоединение к электрическим сетям
A12: dd_hide/show | B12: hide | C12: range_name | D12: address_title | E12: address_svod | G12: Сведения о строительстве линий электропередачи, пунктов секционирования, а также об обеспечении средствами коммерческого учета электрической энергии (мощности) при технологическом присоединении энергопринимающих устройств максимальной мощностью менее 670 кВт и на уровне напряжения 20 кВ и менее (заполняется для территорий, не относящихся к городским населенным пунктам)
G13: № п/п | H13: Объект электросетевого хозяйства/Средство коммерческого учета электрической энергии (мощности) | N13: Год ввода объекта 2018 | Q13: Год ввода объекта 2019 | T13: Год ввода объекта 2020
N14: уровень напряжения, кВ | O14: протяженность (для линий электропередачи), км. / количество (для пунктов секционирования, точек учета ээ), шт. | P14: присоединенная максимальная мощность (менее 670 кВт), кВт | Q14: уровень напряжения, кВ | R14: протяженность (для линий электропередачи), км. / количество (для пунктов секционирования, точек учета ээ), шт. | S14: присоединенная максимальная мощность (менее 670 кВт), кВт | T14: уровень напряжения, кВ | U14: протяженность (для линий электропередачи), км. / количество (для пунктов секционирования, точек учета ээ), шт. | V14: присоединенная максимальная мощность (менее 670 кВт), кВт
A15: ddShPr52_rstart | G15: 1 | H15: 2 | N15: 3 | O15: 4 | P15: 5 | Q15: 6 | R15: 7 | S15: 8 | T15: 9 | U15: 10 | V15: 11
G16: 1. | H16: СТРОИТЕЛЬСТВО ВОЗДУШНЫХ ЛИНИЙ ЭЛЕКТРОПЕРЕДАЧИ | O16: =SUM(O18:O20) -> 0 | P16: =SUM(P18:P20) -> 0 | R16: =SUM(R18:R20) -> 0 | S16: =SUM(S18:S20) -> 0 | U16: =SUM(U18:U20) -> 0 | V16: =SUM(V18:V20) -> 0
H17: тип опор: | I17: тип провода: | J17: материал провода: | K17: сечение провода: | L17: количество цепей: | M17: уровень напряжения:
B18: 1
B19: 1 | C19: VL | D19: =ROW($D$17) -> 17 | F19: Удалить | G19: =$G$16 & (ROWS($G$18:G19)-2)+1&"." -> 1.1.
B20: 1
H21: Добавить
B22: 1
G23: 2. | H23: СТРОИТЕЛЬСТВО КАБЕЛЬНЫХ ЛИНИЙ ЭЛЕКТРОПЕРЕДАЧИ | O23: =SUM(O25:O27) -> 0 | P23: =SUM(P25:P27) -> 0 | R23: =SUM(R25:R27) -> 0 | S23: =SUM(S25:S27) -> 0 | U23: =SUM(U25:U27) -> 0 | V23: =SUM(V25:V27) -> 0
H24: способ прокладки: | I24: количество жил: | J24: тип изоляции: | K24: сечение провода: | L24: количество кабелей в траншее, канале, туннеле или коллекторе, на галерее или эстакаде, труб в скважине: | M24: уровень напряжения:
B25: 1
B26: 1 | C26: KL | D26: =ROW($D$24) -> 24 | F26: Удалить | G26: =$G$23 & (ROWS($G$25:G26)-2)+1&"." -> 2.1.
B27: 1
H28: Добавить
B29: 1
G30: 3. | H30: СТРОИТЕЛЬСТВО ПУНКТОВ СЕКЦИОНИРОВАНИЯ (РЕКЛОУЗЕРОВ, РАСПРЕДЕЛИТЕЛЬНЫХ ПУНКТОВ, ПЕРЕКЛЮЧАТЕЛЬНЫХ ПУНКТОВ) | O30: =SUM(O32:O34) -> 0 | P30: =SUM(P32:P34) -> 0 | R30: =SUM(R32:R34) -> 0 | S30: =SUM(S32:S34) -> 0 | U30: =SUM(U32:U34) -> 0 | V30: =SUM(V32:V34) -> 0
H31: пункт секционирования: | I31: номинальный ток: | J31: количество ячеек в распределительном или переключательном пункте: | K31: уровень напряжения:
B32: 1
B33: 1 | C33: PS | D33: =ROW($D$31) -> 31 | F33: Удалить | G33: =$G$30 & (ROWS($G$32:G33)-2)+1&"." -> 3.1.
B34: 1
H35: Добавить
B36: 1
G37: 4. | H37: ОБЕСПЕЧЕНИЕ СРЕДСТВАМИ КОММЕРЧЕСКОГО УЧЕТА ЭЛЕКТРИЧЕСКОЙ ЭНЕРГИИ (МОЩНОСТИ) | O37: =SUM(O39:O41) -> 0 | P37: =SUM(P39:P41) -> 0 | R37: 0 | S37: 0 | U37: 0 | V37: 0
H38: количество фаз: | I38: тип включения: | J38: уровень напряжения:
B39: 1
B40: 1 | C40: SKU | D40: =ROW($D$38) -> 38 | F40: Удалить | G40: =$G$37 & (ROWS($G$39:G40)-2)+1&"." -> 4.1.
B41: 1
H42: Добавить
B43: 1
A44: ddShPr52_rstop

Sheet Проверка
B1: Сообщение | C1: Адрес | D1: Статус

Sheet Справочник (hidden)
B1: VL1 | C1: VL2 | D1: VL3 | E1: VL4 | F1: VL5 | G1: VL6 | J1: KL1 | K1: KL2 | L1: KL3 | M1: KL4 | N1: KL5 | O1: KL6 | R1: PS1 | S1: PS2 | T1: PS3 | U1: PS4 | W1: TS1 | X1: TS2 | Y1: TS3 | Z1: TS4 | AB1: RTP1 | AC1: RTP2 | AD1: RTP3 | AG1: SP1 | AH1: SP2 | AI1: SP3 | AL1: SKU1 | AM1: SKU2 | AN1: SKU3
B2: 1. ВЛ Воздушные линии | J2: 2. КЛ Кабельные линии | R2: 3. Пункты секционирования | W2: 4. ТП Трансформаторные подстанции | AB2: 5. РТП Распред. трансформаторные подстанции | AG2: 6. Подстанции | AL2: 7. СКУ Средства коммерческого учета
B3: строительство воздушных линий электропередачи | J3: строительство кабельных линий электропередачи | R3: строительство пунктов секционирования (реклоузеров, распределительных пунктов, переключательных пунктов) | W3: строительство трансформаторных подстанций (ТП), за исключением распределительных трансформаторных подстанций (РТП), с уровнем напряжения до 35 кВ | AB3: строительство распределительных трансформаторных подстанций (РТП) с уровнем напряжения до 35 кВ | AG3: строительство подстанций уровнем напряжения 35 кВ и выше | AL3: обеспечение средствами коммерческого учета электрической энергии (мощности)
B4: тип опор: | C4: тип провода: | D4: материал провода: | E4: сечение провода: | F4: количество цепей: | G4: уровень напряжения: | J4: способ прокладки: | K4: количество жил: | L4: тип изоляции: | M4: сечение провода: | N4: количество кабелей в траншее, канале, туннеле или коллекторе, на галерее или эстакаде, труб в скважине: | O4: уровень напряжения: | R4: пункт секционирования: | S4: номинальный ток: | T4: количество ячеек в распределительном или переключательном пункте: | U4: уровень напряжения: | W4: уровень напряжения: | X4: количество трансформаторов: | Y4: трансформаторная мощность: | Z4: тип трансформаторной подстанции: | AB4: количество трансформаторов: | AC4: трансформаторная мощность: | AD4: уровень напряжения: | AG4: количество трансформаторов: | AH4: трансформаторная мощность: | AI4: уровень напряжения: | AL4: количество фаз: | AM4: тип включения: | AN4: уровень напряжения:
B5: деревянные | C5: изолированный | D5: медный | E5: до 50 мм2 включительно | F5: одноцепная | G5: 0,4 кВ и ниже | J5: в траншеях | K5: одножильные | L5: резиновая и пластмассовая | M5: до 50 мм2 включительно | N5: один | O5: 0,4 кВ и ниже | R5: реклоузеры | S5: до 100 А включительно | T5: до 5 ячеек включительно | U5: 0,4 кВ и ниже | W5: 6/0,4 кВ | X5: однотрансформаторные | Y5: до 25 кВА включительно | Z5: столбовой/мачтовый | AB5: однотрансформаторные | AC5: до 25 кВА включительно | AD5: 6(10)/0,4 кВ | AG5: однотрансформаторные | AH5: до 6,3 МВА включительно | AI5: 35/6(10) кВ | AL5: однофазный | AM5: прямой | AN5: 0,4 кВ и ниже
B6: железобетонные опоры | C6: неизолированный | D6: стальной | E6: от 50 до 100 мм2 включительно | F6: двухцепная | G6: 1-20 кВ | J6: в блоках | K6: многожильные | L6: бумажная | M6: от 50 до 100 мм2 включительно | N6: два | O6: 1-10 кВ | R6: линейные разъединители | S6: от 100 до 250 А включительно | T6: от 5 до 10 ячеек включительно | U6: 1-20 кВ | W6: 10/0,4 кВ | X6: двухтрансформаторные | Y6: от 25 до 100 кВА включительно | Z6: шкафной или киосковый | AB6: двухтрансформаторные | AC6: от 25 до 100 кВА включительно | AD6: 20/0,4 кВ | AG6: двухтрансформаторные | AH6: от 6,3 до 10 МВА включительно | AI6: 35/0,4 кВ | AL6: трехфазный | AM6: полукосвенный | AN6: 1-20 кВ
B7: металлические опоры | D7: сталеалюминиевый | E7: от 100 до 200 мм2 включительно | G7: 27,5-60 кВ | J7: в каналах | M7: от 100 до 200 мм2 включительно | N7: три | O7: 15-20 кВ | R7: выключатели нагрузки, устанавливаемые вне трансформаторных подстанций и распределительных и переключательных пунктов (РП) | S7: от 250 до 500 А включительно | T7: от 10 до 15 ячеек включительно | U7: 35 кВ | W7: 20/0,4 кВ | Y7: от 100 до 250 кВА включительно | Z7: блочный | AC7: от 100 до 250 кВА включительно | AH7: от 10 до 16 МВА включительно | AI7: 110/35 кВ | AM7: косвенный | AN7: 35 кВ
B8: металлические опоры, за исключением многогранных | D8: алюминиевый | E8: от 200 до 500 мм2 включительно | G8: 110 кВ и выше | J8: в туннелях и коллекторах | M8: от 200 до 250 мм2 включительно | N8: четыре | O8: 27,5-60 кВ | R8: распределительные пункты (РП), за исключением комплектных распределительных устройств наружной установки (КРН, КРУН) | S8: от 500 до 1000 А включительно | T8: свыше 15 ячеек | U8: 110 кВ и выше | W8: 6/10 (10/6) кВ | Y8: от 250 до 400 кВА включительно | AC8: от 250 до 400 кВА включительно | AH8: от 16 до 25 МВА включительно | AI8: 110/6(10) кВ | AN8: 110 кВ и выше
B9: многогранные металлические опоры | E9: от 500 до 800 мм2 включительно | J9: в галереях и эстакадах | M9: от 250 до 300 мм2 включительно | N9: более четырех | O9: 110 кВ и выше | R9: комплектные распределительные устройства наружной установки (КРН, КРУН) | S9: свыше 1000 А | W9: 10/20 (20/10) кВ | Y9: от 400 до 1000 кВА включительно | AC9: от 400 до 1000 кВА включительно | AH9: от 25 до 32 МВА включительно | AI9: 110/35/6(10) кВ
E10: свыше 800 мм2 | J10: горизонтальное наклонное бурение | M10: от 300 до 400 мм2 включительно | R10: переключательные пункты | W10: 6/20 (20/6) кВ | Y10: от 1000 до 1250 кВА включительно | AC10: от 1000 до 1250 кВА включительно | AH10: от 32 до 40 МВА включительно
M11: от 400 до 500 мм2 включительно | Y11: от 1250 до 1600 кВА включительно | AC11: от 1250 до 1600 кВА включительно | AH11: от 40 до 63 МВА включительно
M12: от 500 до 800 мм2 включительно | Y12: от 1600 до 2000 кВА включительно | AC12: от 1600 до 2000 кВА включительно | AH12: от 63 до 80 МВА включительно
M13: свыше 800 мм2 | Y13: от 2000 до 2500 кВА включительно | AC13: от 2000 до 2500 кВА включительно | AH13: от 80 до 100 МВА включительно
Y14: от 2500 до 3150 кВА включительно | AC14: от 2500 до 3150 кВА включительно | AH14: свыше 100 МВА
Y15: от 3150 до 4000 кВА включительно | AC15: свыше 3150 кВА
Y16: свыше 4000 кВА
